bitfinex/quotes_BTCUSD_20240101
["timestamp","ask_amount","ask_price","bid_price","bid_amount"]
[1704074303532,0.527066,42667.0,42666.0,0.005]
[1704074303765,0.527066,42667.0,42662.0,0.245]
[1704074303975,0.527066,42667.0,42662.0,0.247]
[1704074304163,0.527066,42667.0,42662.0,0.248]
[1704074304164,0.0513,42666.0,42662.0,0.248]
[1704074304651,0.468746,42667.0,42662.0,0.245]
[1704074305837,0.04512,42666.0,42662.0,0.245]
[1704074306260,0.468746,42667.0,42662.0,0.245]
[1704074306688,0.468746,42667.0,42662.0,0.25]
[1704074306896,0.468746,42667.0,42662.0,0.248]
[1704074307109,0.468746,42667.0,42662.0,0.252]
[1704074307327,0.04506,42666.0,42662.0,0.248]
[1704074307764,0.04506,42666.0,42662.0,0.25]
[1704074308626,0.04542,42666.0,42662.0,0.25]
[1704074309209,0.468746,42667.0,42662.0,0.245]
[1704074309426,0.468746,42667.0,42662.0,0.249]
[1704074309648,0.468746,42667.0,42662.0,0.253]
[1704074310215,0.468746,42667.0,42662.0,0.249]
[1704074310418,0.468746,42667.0,42662.0,0.248]
[1704074310624,0.521397,42670.0,42662.0,0.25]
[1704074310822,0.04578,42669.0,42662.0,0.25]
[1704074311025,0.468717,42670.0,42662.0,0.25]
[1704074311681,0.04542,42669.0,42662.0,0.25]
[1704074312567,0.04542,42669.0,42662.0,0.247]
[1704074312777,0.04542,42669.0,42662.0,0.245]
[1704074313372,0.520617,42670.0,42662.0,0.245]
[1704074313577,0.001,42669.0,42662.0,0.245]
[1704074313909,0.001,42669.0,42663.0,0.23321711]
[1704074315024,0.001,42669.0,42663.0,0.70200611]
[1704074315891,0.468685,42673.0,42663.0,0.70200611]
[1704074316077,0.001,42669.0,42663.0,0.70200611]
[1704074316329,0.468685,42673.0,42663.0,0.70200611]
[1704074316550,0.22162437,42672.0,42663.0,0.70200611]
[1704074316763,0.27770968,42672.0,42663.0,0.70600611]
[1704074316977,0.27770968,42672.0,42663.0,0.71000611]
[1704074317435,0.27770968,42672.0,42663.0,0.70600611]
[1704074317677,0.27770968,42672.0,42663.0,0.70200611]
[1704074317678,0.05202,42672.0,42663.0,0.70200611]
[1704074317931,0.05302,42672.0,42663.0,0.70200611]
[1704074321331,0.521713,42672.0,42663.0,0.70200611]
[1704074321570,0.469693,42672.0,42663.0,0.70200611]
[1704074322017,0.515113,42672.0,42663.0,0.70200611]
[1704074322276,0.469693,42672.0,42663.0,0.70200611]
[1704074322698,0.514753,42672.0,42663.0,0.70200611]
[1704074322909,0.514933,42672.0,42663.0,0.23321711]
[1704074323153,0.10232531,42672.0,42663.0,0.23321711]
[1704074323381,0.518686,42671.0,42663.0,0.23321711]
[1704074323838,0.04536,42670.0,42663.0,0.23321711]
[1704074324073,0.468724,42669.0,42663.0,0.23321711]
[1704074324520,0.0462,42668.0,42663.0,0.23321711]
[1704074324763,0.0462,42668.0,42662.0,0.245]
[1704074324764,0.532336,42668.0,42662.0,0.245]
[1704074324991,0.05472,42667.0,42662.0,0.245]
[1704074325214,0.05472,42667.0,42663.0,0.001]
[1704074325669,0.05472,42667.0,42663.0,0.002]
[1704074325893,0.05472,42667.0,42662.0,0.245]
[1704074326127,0.05572,42667.0,42662.0,0.26]
[1704074326355,0.05472,42667.0,42662.0,0.252]
[1704074326605,0.05472,42667.0,42662.0,0.245]
[1704074326801,0.05672,42667.0,42663.0,0.014]
[1704074327006,0.05572,42667.0,42663.0,0.007]
[1704074327213,0.002,42667.0,42663.0,0.007]
[1704074327970,0.001,42667.0,42662.0,0.253]
[1704074328191,0.001,42667.0,42662.0,0.262]
[1704074328400,0.001,42667.0,42662.0,0.254]
[1704074328611,0.002,42667.0,42663.0,0.007]
[1704074328828,0.001,42667.0,42663.0,0.007]
[1704074329052,0.001,42667.0,42664.0,0.23321711]
[1704074329179,0.002,42667.0,42665.0,0.23]
[1704074329400,0.002,42667.0,42666.0,0.23321711]
[1704074329608,0.001,42667.0,42666.0,0.23321711]
[1704074330234,0.468686,42673.0,42666.0,0.23321711]
[1704074330705,0.468689,42673.0,42666.0,0.23321711]
[1704074330907,0.05608531,42674.0,42666.0,0.23321711]
[1704074330908,0.468691,42672.0,42666.0,0.23321711]
[1704074331232,0.001,42667.0,42666.0,0.23321711]
[1704074331465,0.001,42667.0,42666.0,0.23821711]
[1704074331921,0.468691,42672.0,42666.0,0.23321711]
[1704074332156,0.470691,42672.0,42666.0,0.23321711]
[1704074332396,0.468691,42672.0,42666.0,0.23321711]
[1704074332631,0.001,42667.0,42666.0,0.23821711]
[1704074332852,0.001,42667.0,42666.0,0.23921711]
[1704074334606,0.05608531,42677.0,42666.0,0.35621711]
[1704074334818,0.52472731,42677.0,42667.0,0.023]
[1704074335110,0.002,42672.0,42668.0,0.23321711]
[1704074335334,0.002,42672.0,42668.0,0.47941711]
[1704074335545,0.46865,42676.0,42668.0,0.47941711]
[1704074336423,0.002,42672.0,42668.0,0.47941711]
[1704074336636,0.004,42672.0,42668.0,0.47941711]
[1704074337708,0.51989,42676.0,42668.0,0.47941711]
[1704074337916,0.468659,42675.0,42668.0,0.47941711]
[1704074338137,0.468659,42675.0,42668.0,0.48141711]
[1704074338363,0.468659,42675.0,42668.0,0.48041711]
[1704074338589,0.468659,42675.0,42668.0,0.48141711]
[1704074338823,0.468659,42675.0,42668.0,0.47941711]
[1704074339264,0.470659,42675.0,42668.0,0.47941711]
[1704074340147,0.46867,42674.0,42668.0,0.47941711]
[1704074341228,0.46967,42674.0,42668.0,0.47941711]
[1704074342339,0.469677,42674.0,42668.0,0.47941711]
[1704074343865,0.468682,42673.0,42668.0,0.47941711]
[1704074344318,0.04596,42672.0,42668.0,0.2462]
[1704074344531,0.1,42664.0,42662.0,0.6571]
[1704074344749,0.1,42664.0,42661.0,0.05968286]
[1704074344750,0.46879,42663.0,42661.0,0.004]
[1704074344977,0.568801,42662.0,42661.0,0.004]
[1704074345189,0.645841,42662.0,42661.0,0.004]
[1704074345843,0.545841,42662.0,42661.0,0.004]
[1704074346073,0.548841,42662.0,42661.0,0.006]
[1704074346277,0.548841,42662.0,42661.0,0.004]
[1704074346278,0.648841,42662.0,42661.0,0.004]
[1704074346918,0.530841,42662.0,42661.0,0.004]
[1704074347129,0.534841,42662.0,42661.0,0.004]
[1704074347371,0.531841,42662.0,42661.0,0.004]
[1704074348231,0.534841,42662.0,42661.0,0.004]
[1704074348444,0.475801,42662.0,42661.0,0.004]
[1704074348872,0.523921,42662.0,42661.0,0.004]
[1704074349525,0.544861,42662.0,42661.0,0.004]
[1704074350156,0.67352494,42662.0,42661.0,0.004]
[1704074350574,0.544861,42662.0,42661.0,0.004]
[1704074351642,0.528901,42662.0,42661.0,0.004]
[1704074351847,0.529681,42662.0,42661.0,0.004]
[1704074352702,0.475801,42662.0,42661.0,0.004]
[1704074357274,0.472801,42662.0,42661.0,0.004]
[1704074357701,0.468801,42662.0,42661.0,0.004]
[1704074358120,0.469801,42662.0,42661.0,0.004]
[1704074363116,0.001,42662.0,42661.0,0.004]
[1704074363489,0.469801,42662.0,42661.0,0.004]
[1704074366702,0.522001,42662.0,42661.0,0.004]
[1704074367935,0.469801,42662.0,42661.0,0.004]
[1704074368142,0.522361,42662.0,42661.0,0.004]
[1704074368357,0.469801,42662.0,42661.0,0.004]
[1704074369399,0.58948559,42662.0,42661.0,0.004]
[1704074370428,0.75933268,42662.0,42661.0,0.004]
[1704074370635,0.78339268,42662.0,42661.0,0.004]
[1704074371678,0.61354559,42662.0,42661.0,0.004]
[1704074371893,0.59524559,42662.0,42661.0,0.004]
[1704074374345,0.53740559,42662.0,42661.0,0.004]
[1704074376662,0.77306385,42662.0,42661.0,0.004]
[1704074378713,0.59458559,42662.0,42661.0,0.004]
[1704074381660,0.53740559,42662.0,42661.0,0.004]
[1704074381877,0.58948559,42662.0,42661.0,0.004]
[1704074383119,0.12068459,42662.0,42661.0,0.004]
[1704074383333,0.521881,42662.0,42661.0,0.004]
[1704074383516,0.58948559,42662.0,42661.0,0.004]
[1704074383923,0.71612559,42662.0,42661.0,0.004]
[1704074385345,0.53740559,42662.0,42661.0,0.004]
[1704074385570,1.21266787,42662.0,42661.0,0.004]
[1704074385811,1.74588498,42662.0,42661.0,0.004]
[1704074386048,2.31542598,42662.0,42661.0,0.004]
[1704074386329,2.11468598,42662.0,42661.0,0.004]
[1704074386715,0.79894298,42662.0,42661.0,0.004]
[1704074386927,1.64588498,42662.0,42661.0,0.004]
[1704074387173,2.11468598,42662.0,42661.0,0.004]
[1704074387594,1.31266787,42662.0,42661.0,0.004]
[1704074388738,1.36875318,42662.0,42661.0,0.004]
[1704074389371,1.39679584,42662.0,42661.0,0.004]
[1704074389781,1.31266787,42662.0,42661.0,0.004]
[1704074389985,1.39679584,42662.0,42661.0,0.004]
[1704074390416,1.31266787,42662.0,42661.0,0.004]
[1704074390623,1.51588486,42662.0,42661.0,0.004]
[1704074390833,1.40332787,42662.0,42661.0,0.004]
[1704074391251,1.42522486,42662.0,42661.0,0.004]
[1704074391459,1.51546486,42662.0,42661.0,0.004]
[1704074393060,1.42522486,42662.0,42661.0,0.004]
[1704074394779,1.42523269,42662.0,42661.0,0.004]
[1704074396329,1.39706906,42662.0,42661.0,0.004]
[1704074396565,1.3126757,42662.0,42661.0,0.004]
[1704074396755,1.42523269,42662.0,42661.0,0.004]
[1704074397573,1.3126757,42662.0,42661.0,0.004]
[1704074397774,1.42519508,42662.0,42661.0,0.004]
[1704074398094,1.62449545,42662.0,42661.0,0.004]
[1704074398295,1.62448849,42662.0,42661.0,0.004]
[1704074398581,1.6244884,42662.0,42661.0,0.004]
[1704074399295,1.4126757,42662.0,42661.0,0.004]
[1704074399504,1.3126757,42662.0,42661.0,0.004]
[1704074399938,1.4126757,42662.0,42661.0,0.004]
[1704074400379,1.64589281,42662.0,42661.0,0.004]
[1704074400597,1.95062384,42662.0,42661.0,0.004]
[1704074400805,1.48182284,42662.0,42661.0,0.004]
[1704074400989,1.38182284,42662.0,42661.0,0.004]
[1704074401114,1.85062384,42662.0,42661.0,0.004]
[1704074401331,1.73711281,42662.0,42661.0,0.004]
[1704074401537,1.85562715,42662.0,42661.0,0.005]
[1704074401744,1.52195757,42662.0,42661.0,0.006]
[1704074401956,1.37531181,42662.0,42661.0,0.005]
[1704074402184,1.51595757,42662.0,42661.0,0.005]
[1704074402416,0.3,42659.0,42658.0,0.02882]
[1704074402625,1.58340628,42659.0,42658.0,0.02882]
[1704074402834,1.8827387,42659.0,42658.0,0.02882]
[1704074403032,1.77021753,42659.0,42658.0,0.02882]
[1704074403255,1.91087319,42659.0,42658.0,0.02882]
[1704074403670,1.77021753,42659.0,42658.0,0.02882]
[1704074403887,1.88472604,42659.0,42658.0,0.02882]
[1704074404098,0.40333242,42659.0,42658.0,0.02882]
[1704074404320,0.75855769,42659.0,42658.0,0.02882]
[1704074404525,0.75855581,42659.0,42658.0,0.02882]
[1704074404738,0.75855535,42659.0,42658.0,0.02882]
[1704074405157,0.758556,42659.0,42658.0,0.02882]
[1704074406373,0.70230642,42659.0,42658.0,0.02882]
[1704074407287,0.58724642,42659.0,42658.0,0.02882]
[1704074407725,0.004,42659.0,42658.0,0.02882]
[1704074407932,0.472834,42659.0,42658.0,0.02882]
[1704074408221,0.60589407,42659.0,42658.0,0.02882]
[1704074408439,1.03911118,42659.0,42658.0,0.02882]
[1704074408666,1.09536076,42659.0,42658.0,0.02882]
[1704074409058,1.03911118,42659.0,42658.0,0.02882]
[1704074409289,1.03711118,42659.0,42658.0,0.02882]
[1704074409520,0.60389407,42659.0,42658.0,0.02882]
[1704074410035,0.60189407,42659.0,42658.0,0.02882]
[1704074410455,0.60489407,42659.0,42658.0,0.02882]
[1704074410653,0.60389407,42659.0,42658.0,0.02882]
[1704074411083,0.60589407,42659.0,42658.0,0.02882]
[1704074411737,0.59053407,42659.0,42658.0,0.02882]
[1704074412164,0.54403407,42659.0,42658.0,0.02882]
[1704074412650,0.472834,42659.0,42658.0,0.02882]
[1704074413313,0.468834,42659.0,42658.0,0.02882]
[1704074413530,0.472834,42659.0,42656.0,0.2341]
[1704074413966,0.468834,42659.0,42656.0,0.2341]
[1704074414229,0.468809,42662.0,42656.0,0.2341]
[1704074414463,0.468809,42662.0,42656.0,0.46731711]
[1704074414707,0.07118068,42661.0,42658.0,0.001]
[1704074414939,0.468808,42662.0,42658.0,0.001]
[1704074415186,0.468808,42662.0,42659.0,0.2464]
[1704074416039,0.05624958,42668.0,42662.0,0.1]
[1704074416262,0.468675,42674.0,42663.0,0.23321711]
[1704074416478,0.468684,42673.0,42663.0,0.48011711]
[1704074417339,0.468684,42673.0,42663.0,0.48311711]
[1704074417557,0.468684,42673.0,42663.0,0.49011711]
[1704074417558,0.14691235,42672.0,42663.0,0.49011711]
[1704074418679,0.14691235,42672.0,42663.0,0.48711711]
[1704074418900,0.14691235,42672.0,42663.0,0.48011711]
[1704074419123,0.14691235,42672.0,42663.0,0.48711711]
[1704074419350,0.14791235,42672.0,42663.0,0.49511711]
[1704074419563,0.001,42672.0,42663.0,0.48811711]
[1704074419769,0.002,42672.0,42663.0,0.49711711]
[1704074420410,0.470691,42672.0,42663.0,0.49711711]
[1704074423946,0.468704,42671.0,42663.0,0.49711711]
[1704074424175,0.002,42672.0,42669.0,0.2]
[1704074424388,0.002,42672.0,42670.0,0.25621711]
[1704074424600,0.002,42672.0,42670.0,0.50301711]
[1704074425037,0.001,42672.0,42670.0,0.50301711]
[1704074425450,0.001,42671.0,42670.0,0.50301711]
[1704074425868,0.001,42672.0,42670.0,0.50301711]
[1704074426292,0.001,42672.0,42670.0,0.51801711]
[1704074426700,0.002,42672.0,42670.0,0.51801711]
[1704074427106,0.001,42672.0,42670.0,0.51801711]
[1704074427314,0.002,42672.0,42670.0,0.53301711]
[1704074429042,0.002,42672.0,42671.0,0.2]
[1704074429222,0.002,42672.0,42671.0,0.45621711]
[1704074429421,0.002,42672.0,42671.0,0.50121711]
[1704074430043,0.001,42672.0,42671.0,0.50121711]
[1704074430207,0.468593,42681.0,42672.0,0.2]
[1704074430423,0.468593,42681.0,42673.0,0.25621711]
[1704074430621,0.468593,42681.0,42673.0,0.49451711]
[1704074430851,0.16659092,42687.0,42674.0,0.1]
[1704074431052,0.16659092,42687.0,42675.0,0.25621711]
[1704074431253,0.468569,42684.0,42675.0,0.25621711]
[1704074431461,0.468569,42684.0,42676.0,0.2518]
[1704074431664,0.468509,42684.0,42677.0,0.23321711]
[1704074431879,0.468572,42683.0,42677.0,0.23321711]
[1704074432479,0.003,42681.0,42677.0,0.23321711]
[1704074432849,0.468572,42683.0,42677.0,0.23321711]
[1704074433062,0.006,42683.0,42677.0,0.23421711]
[1704074433271,0.480572,42683.0,42677.0,0.23421711]
[1704074433480,0.474572,42683.0,42677.0,0.23321711]
[1704074433684,0.003,42681.0,42677.0,0.23321711]
[1704074433900,0.474572,42683.0,42677.0,0.23321711]
[1704074434358,0.012,42683.0,42677.0,0.001]
[1704074434569,0.468622,42679.0,42677.0,0.001]
[1704074435407,0.468622,42679.0,42672.0,0.01]
[1704074435408,0.523705,42678.0,42668.0,0.9671]
[1704074435625,0.468684,42673.0,42671.0,0.2516]
[1704074435831,0.46867,42674.0,42671.0,0.2516]
[1704074436680,0.1,42680.0,42671.0,0.2516]
[1704074436681,0.04632,42673.0,42671.0,0.2516]
[1704074436887,0.468691,42672.0,42671.0,0.017]
[1704074437309,0.468691,42672.0,42671.0,0.033]
[1704074437536,0.520891,42672.0,42671.0,0.033]
[1704074437767,0.468691,42672.0,42671.0,0.033]
[1704074437995,0.520231,42672.0,42671.0,0.016]
[1704074438209,0.520231,42672.0,42671.0,0.033]
[1704074438631,0.541831,42672.0,42671.0,0.017]
[1704074438842,0.541831,42672.0,42665.0,0.2516]
[1704074439056,0.468728,42669.0,42664.0,0.6571]
[1704074440128,0.468728,42669.0,42660.0,0.2384]
[1704074440342,0.468728,42669.0,42661.0,0.53321711]
[1704074441000,0.05244,42670.0,42661.0,0.53321711]
[1704074441209,0.46873,42669.0,42661.0,0.53321711]
[1704074441413,0.51883,42669.0,42661.0,0.53321711]
[1704074441640,0.46873,42669.0,42664.0,0.002]
[1704074441867,0.515598,42668.0,42664.0,0.003]
[1704074442073,0.515598,42668.0,42661.0,0.53321711]
[1704074442286,0.468738,42668.0,42661.0,0.54521711]
[1704074442505,0.468738,42668.0,42661.0,0.23921711]
[1704074442723,0.04596,42667.0,42661.0,0.23321711]
[1704074442953,0.04596,42667.0,42664.0,0.001]
[1704074443431,0.04596,42667.0,42661.0,0.23321711]
[1704074443649,0.04596,42667.0,42664.0,0.003]
[1704074444310,0.0459,42667.0,42664.0,0.003]
[1704074444781,0.0459,42667.0,42661.0,0.24021711]
[1704074444991,0.0459,42667.0,42661.0,0.23321711]
[1704074445210,0.0459,42667.0,42660.0,0.2384]
[1704074445437,0.468774,42665.0,42660.0,0.2484]
[1704074445970,0.002,42667.0,42661.0,0.23321711]
[1704074446198,0.008,42667.0,42661.0,0.23321711]
[1704074446416,0.006,42667.0,42661.0,0.23321711]
[1704074447795,0.468731,42669.0,42661.0,0.23321711]
[1704074448015,0.001,42667.0,42661.0,0.24221711]
[1704074448264,0.002,42667.0,42661.0,0.25121711]
[1704074448686,0.001,42667.0,42662.0,0.023]
[1704074448904,0.001,42667.0,42663.0,0.23321711]
[1704074449332,0.001,42667.0,42664.0,0.2369]
[1704074449563,0.468704,42671.0,42665.0,0.23321711]
[1704074449781,0.001,42667.0,42665.0,0.23321711]
[1704074450003,0.002,42667.0,42665.0,0.23321711]
[1704074450867,0.468704,42671.0,42665.0,0.23321711]
[1704074451761,0.468704,42671.0,42665.0,0.23721711]
[1704074452007,0.1,42666.0,42665.0,0.004]
[1704074452269,0.1,42666.0,42655.0,0.02882]
[1704074452270,0.1,42662.0,42655.0,0.02882]
[1704074452502,0.468867,42656.0,42655.0,0.02882]
[1704074452727,0.468867,42656.0,42655.0,0.02870603]
[1704074452728,0.66215385,42656.0,42655.0,0.02870603]
[1704074452968,0.73355385,42656.0,42655.0,0.02870603]
[1704074453186,0.70788541,42656.0,42655.0,0.02870603]
[1704074454062,0.640267,42656.0,42655.0,0.02870603]
[1704074454326,0.87348411,42656.0,42655.0,0.02870603]
[1704074454542,1.70082397,42656.0,42655.0,0.02870603]
[1704074454813,1.70082397,42656.0,42655.0,0.02970603]
[1704074455053,1.70082397,42656.0,42655.0,0.02870603]
[1704074455054,1.84553157,42656.0,42655.0,0.02870603]
[1704074455275,1.76202487,42656.0,42655.0,0.02870603]
[1704074455726,1.77502487,42656.0,42655.0,0.02970603]
[1704074455935,1.78902487,42656.0,42655.0,0.03070603]
[1704074456178,1.32015787,42656.0,42655.0,0.03070603]
[1704074456386,1.78902487,42656.0,42655.0,0.03070603]
[1704074456607,1.78621487,42656.0,42655.0,0.03070603]
[1704074456834,1.77321487,42656.0,42655.0,0.02970603]
[1704074457283,1.77321487,42656.0,42655.0,0.03070603]
[1704074457284,1.58621487,42656.0,42655.0,0.03070603]
[1704074457468,1.36289171,42656.0,42655.0,0.03070603]
[1704074457679,1.46289171,42656.0,42655.0,0.03070603]
[1704074457887,1.53051742,42656.0,42655.0,0.03070603]
[1704074458118,1.43051742,42656.0,42655.0,0.03070603]
[1704074458335,1.19730031,42656.0,42655.0,0.03070603]
[1704074458549,1.1296746,42656.0,42655.0,0.03070603]
[1704074458977,1.0296746,42656.0,42655.0,0.03070603]
[1704074459180,1.0988946,42656.0,42655.0,0.03070603]
[1704074459395,0.9988946,42656.0,42655.0,0.03070603]
[1704074459606,1.0988946,42656.0,42655.0,0.03070603]
[1704074460283,0.5300276,42656.0,42655.0,0.03070603]
[1704074460503,0.9405746,42656.0,42655.0,0.03070603]
[1704074460937,1.0931946,42656.0,42655.0,0.03070603]
[1704074461417,0.9931946,42656.0,42655.0,0.03070603]
[1704074461628,0.495867,42656.0,42655.0,0.03070603]
[1704074461840,0.545547,42656.0,42655.0,0.03070603]
[1704074462763,0.557327,42656.0,42655.0,0.02970603]
[1704074462985,0.557327,42656.0,42655.0,0.03170603]
[1704074463204,0.543327,42656.0,42655.0,0.03070603]
[1704074463632,0.543327,42656.0,42655.0,0.02870603]
[1704074463867,0.87954411,42656.0,42655.0,0.02870603]
[1704074464935,0.88254411,42656.0,42655.0,0.02870603]
[1704074465389,0.87954411,42656.0,42655.0,0.02870603]
[1704074465594,0.88254411,42656.0,42655.0,0.02870603]
[1704074466431,0.41367711,42656.0,42655.0,0.02870603]
[1704074466647,0.88254411,42656.0,42655.0,0.02870603]
[1704074468771,0.97583096,42656.0,42655.0,0.02870603]
[1704074470356,1.04345434,42656.0,42655.0,0.02870603]
[1704074473341,0.95016749,42656.0,42655.0,0.02870603]
[1704074474359,1.04345434,42656.0,42655.0,0.02870603]
[1704074474925,0.95016749,42656.0,42655.0,0.02870603]
[1704074475189,1.08927236,42656.0,42655.0,0.02870603]
[1704074475342,1.18255921,42656.0,42655.0,0.02870603]
[1704074475756,1.04345434,42656.0,42655.0,0.02870603]
[1704074476402,1.51232134,42656.0,42655.0,0.02870603]
[1704074476594,1.41903449,42656.0,42655.0,0.02870603]
[1704074478266,0.95016749,42656.0,42655.0,0.02870603]
[1704074478465,1.41903449,42656.0,42655.0,0.02870603]
[1704074479081,1.71551449,42656.0,42655.0,0.02870603]
[1704074479507,1.64105449,42656.0,42655.0,0.02870603]
[1704074480599,2.22128149,42656.0,42655.0,0.02870603]
[1704074480798,2.52128149,42656.0,42655.0,0.02870603]
[1704074481220,2.98868262,42656.0,42655.0,0.02870603]
[1704074481867,2.98568262,42656.0,42655.0,0.02870603]
[1704074482273,2.99768262,42656.0,42655.0,0.02970603]
[1704074482718,2.99668262,42656.0,42655.0,0.02970603]
[1704074482925,3.01168262,42656.0,42655.0,0.03070603]
[1704074483775,2.99768262,42656.0,42655.0,0.02970603]
[1704074483989,3.25403904,42656.0,42655.0,0.03070603]
[1704074484838,0.3,42651.0,42650.0,0.02882]
[1704074485034,1.47106111,42651.0,42650.0,0.02882]
[1704074485262,1.64068449,42651.0,42650.0,0.02882]
[1704074485871,1.64068449,42651.0,42650.0,0.02982]
[1704074485872,1.82407344,42651.0,42650.0,0.02982]
[1704074486283,1.92175344,42651.0,42650.0,0.02982]
[1704074487125,1.984,42651.0,42650.0,0.02982]
[1704074487348,1.984,42651.0,42650.0,0.03082]
[1704074487349,2.292,42651.0,42650.0,0.03082]
[1704074487552,2.23975344,42651.0,42650.0,0.03082]
[1704074487809,2.69715457,42651.0,42650.0,0.03082]
[1704074489091,3.16607657,42651.0,42650.0,0.03082]
[1704074489536,3.16596003,42651.0,42650.0,0.03082]
[1704074490834,3.06828003,42651.0,42650.0,0.03082]
[1704074491730,3.06768291,42651.0,42650.0,0.03082]
[1704074491954,2.84014291,42651.0,42650.0,0.03082]
[1704074492375,2.38274178,42651.0,42650.0,0.03082]
[1704074492593,1.91381978,42651.0,42650.0,0.03082]
[1704074493651,0.97597578,42651.0,42650.0,0.03082]
[1704074493877,1.44489778,42651.0,42650.0,0.03082]
[1704074494522,2.38209237,42651.0,42650.0,0.03082]
[1704074494872,0.29928634,42650.0,42649.0,0.02882]
[1704074495084,1.83781211,42650.0,42649.0,0.02882]
[1704074495617,2.06929211,42650.0,42649.0,0.02882]
[1704074496060,2.10603333,42650.0,42649.0,0.02882]
[1704074497081,1.63710033,42650.0,42649.0,0.02882]
[1704074497284,2.12203333,42650.0,42649.0,0.02982]
[1704074497495,2.17815796,42650.0,42649.0,0.02982]
[1704074497916,2.33023796,42650.0,42649.0,0.03182]
[1704074498141,2.19415796,42650.0,42649.0,0.03182]
[1704074499436,2.66309096,42650.0,42649.0,0.03182]
[1704074500493,2.61696633,42650.0,42649.0,0.03182]
[1704074500774,2.85832275,42650.0,42649.0,0.03182]
[1704074501409,2.6731639,42650.0,42649.0,0.03182]
[1704074501631,2.70115308,42650.0,42649.0,0.03182]
[1704074502215,2.61696633,42650.0,42649.0,0.03182]
[1704074502419,2.70115308,42650.0,42649.0,0.03182]
[1704074503647,2.84047308,42650.0,42649.0,0.03182]
[1704074503818,3.0818295,42650.0,42649.0,0.03182]
[1704074504016,3.17008608,42650.0,42649.0,0.03182]
[1704074505226,3.17008608,42650.0,42649.0,0.26332]
[1704074506060,2.60115308,42650.0,42649.0,0.26332]
[1704074506457,2.70115308,42650.0,42649.0,0.26332]
[1704074507328,2.60115308,42650.0,42649.0,0.26332]
[1704074507680,2.04821405,42650.0,42649.0,0.26332]
[1704074507899,2.16046332,42650.0,42649.0,0.26332]
[1704074508121,2.26046332,42650.0,42649.0,0.26332]
[1704074508333,2.69877001,42650.0,42649.0,0.26332]
[1704074510472,2.69890848,42650.0,42649.0,0.26332]
[1704074511348,2.58652074,42650.0,42649.0,0.26332]
[1704074512226,2.11758774,42650.0,42649.0,0.26332]
[1704074512664,1.64865474,42650.0,42649.0,0.26332]
[1704074512894,1.91758774,42650.0,42649.0,0.26332]
[1704074513114,1.89322774,42650.0,42649.0,0.26332]
[1704074513357,1.65492105,42650.0,42649.0,0.26332]
[1704074513617,2.06416563,42650.0,42649.0,0.26332]
[1704074513823,2.26416563,42650.0,42649.0,0.26332]
[1704074514252,2.06416563,42650.0,42649.0,0.26332]
[1704074514465,2.70247232,42650.0,42649.0,0.26332]
[1704074514947,2.50247232,42650.0,42649.0,0.26332]
[1704074515173,2.70247232,42650.0,42649.0,0.26332]
[1704074516503,2.56216074,42650.0,42649.0,0.26332]
[1704074516703,2.70247232,42650.0,42649.0,0.26332]
[1704074517816,2.46216074,42650.0,42649.0,0.26332]
[1704074518261,2.60247232,42650.0,42649.0,0.26332]
[1704074518756,2.70247232,42650.0,42649.0,0.26332]
[1704074520932,2.56216074,42650.0,42649.0,0.26332]
[1704074521408,3.21487374,42650.0,42649.0,0.03182]
[1704074521628,3.07729374,42650.0,42649.0,0.03182]
[1704074521858,3.06729374,42650.0,42649.0,0.03182]
[1704074522067,3.07729374,42650.0,42649.0,0.03182]
[1704074526323,3.24566764,42650.0,42649.0,0.03182]
[1704074530849,3.07729374,42650.0,42649.0,0.03182]
[1704074531079,3.07729374,42650.0,42649.0,0.26282]
[1704074531080,3.03523374,42650.0,42649.0,0.26282]
[1704074532357,3.20360764,42650.0,42649.0,0.26282]
[1704074536649,3.62580406,42650.0,42649.0,0.26282]
[1704074536858,3.31925016,42650.0,42649.0,0.03182]
[1704074538214,3.07789374,42650.0,42649.0,0.03182]
[1704074543582,3.40537438,42650.0,42649.0,0.03182]
[1704074545278,3.26731438,42650.0,42649.0,0.03182]
[1704074545488,3.40297438,42650.0,42649.0,0.03182]
[1704074545762,3.26731438,42650.0,42649.0,0.03182]
[1704074545978,3.40519438,42650.0,42649.0,0.03182]
[1704074546616,3.26731438,42650.0,42649.0,0.03182]
[1704074547106,3.40303438,42650.0,42649.0,0.03182]
[1704074547371,3.07789374,42650.0,42649.0,0.03182]
[1704074548593,0.47351925,42649.0,42642.0,0.2427]
[1704074548657,0.19928634,42643.0,42642.0,0.2427]
[1704074549034,0.60148938,42643.0,42642.0,0.2427]
[1704074549388,1.00311606,42643.0,42642.0,0.2427]
[1704074549628,1.47212606,42643.0,42642.0,0.2427]
[1704074550092,1.30813683,42643.0,42642.0,0.2437]
[1704074550340,1.31413683,42643.0,42642.0,0.2447]
[1704074552123,0.89421275,42643.0,42642.0,0.2447]
[1704074552387,0.19120275,42643.0,42642.0,0.2447]
[1704074552680,0.19120275,42643.0,42642.0,0.24541366]
[1704074552681,0.011,42643.0,42642.0,0.24541366]
[1704074553707,0.011,42643.0,42642.0,0.2447]
[1704074553955,0.27104017,42643.0,42642.0,0.2447]
[1704074554400,0.74005017,42643.0,42642.0,0.2447]
[1704074555039,0.68376952,42643.0,42642.0,0.2447]
[1704074555248,0.62742952,42643.0,42642.0,0.2447]
[1704074556628,0.48001,42643.0,42642.0,0.2447]
[1704074558564,0.48001,42643.0,42642.0,0.24541366]
[1704074558565,0.011,42643.0,42642.0,0.24541366]
[1704074561808,0.77220711,42643.0,42642.0,0.2447]
[1704074562054,1.0359769,42643.0,42642.0,0.2447]
[1704074562273,1.84471804,42643.0,42642.0,0.2447]
[1704074562489,1.87290454,42643.0,42642.0,0.2447]
[1704074562704,1.76032517,42643.0,42642.0,0.2447]